[Event "Titled Tuesday Blitz August 15 Early 2023"]
[White "Trifan, Andrei Ioan"]
[Black "Mikhaylova, Irina"]
[WhiteFideId "12967068"]
[BlackFideId "4109040"]
[WhiteElo "2573"]
[BlackElo "2313"]
[Result "1/2-1/2"]
[Round "6"]
[TimeControl "180+1"]
[Date "2023.08.15"]
[WhiteClock "0:00:17"]
[BlackClock "0:00:14"]
[Board "92"]

1. e4 {[%clk 0:02:59]}  c5 {[%clk 0:03:00]} 2. Nf3 {[%clk 0:02:59]}  Nc6 {[%clk 0:03:00]} 3. c3 {[%clk 0:02:52]}  d5 {[%clk 0:03:00]} 4. e5 {[%clk 0:02:51]}  Bg4 {[%clk 0:02:59]} 5. d4 {[%clk 0:02:51]}  e6 {[%clk 0:02:42]} 6. Be2 {[%clk 0:02:46]}  Nge7 {[%clk 0:02:30]} 7. O-O {[%clk 0:02:17]}  Nf5 {[%clk 0:02:05]} 8. Be3 {[%clk 0:02:16]}  Qb6 {[%clk 0:01:39]} 9. dxc5 {[%clk 0:02:13]}  Qxb2 {[%clk 0:00:58]} 10. Qa4 {[%clk 0:02:10]}  Qxe2 {[%clk 0:00:30]} 11. Qxg4 {[%clk 0:02:06]}  Nxe3 {[%clk 0:00:27]} 12. fxe3 {[%clk 0:02:07]}  Bxc5 {[%clk 0:00:26]} 13. Re1 {[%clk 0:01:33]}  Qb2 {[%clk 0:00:24]} 14. Nbd2 {[%clk 0:01:17]}  O-O {[%clk 0:00:21]} 15. Nb3 {[%clk 0:01:15]}  Qa3 {[%clk 0:00:20]} 16. c4 {[%clk 0:01:10]}  Rad8 {[%clk 0:00:18]} 17. Rac1 {[%clk 0:01:03]}  d4 {[%clk 0:00:17]} 18. Nxc5 {[%clk 0:01:01]}  Qxc5 {[%clk 0:00:17]} 19. exd4 {[%clk 0:00:58]}  Nxd4 {[%clk 0:00:17]} 20. Kh1 {[%clk 0:00:59]}  Nxf3 {[%clk 0:00:16]} 21. Qxf3 {[%clk 0:01:00]}  Rd4 {[%clk 0:00:16]} 22. Qxb7 {[%clk 0:00:50]}  Rxc4 {[%clk 0:00:16]} 23. Rxc4 {[%clk 0:00:51]}  Qxc4 {[%clk 0:00:16]} 24. Qxa7 {[%clk 0:00:51]}  Qc3 {[%clk 0:00:16]} 25. Qf2 {[%clk 0:00:42]}  h6 {[%clk 0:00:16]} 26. h3 {[%clk 0:00:42]}  Ra8 {[%clk 0:00:16]} 27. Re2 {[%clk 0:00:39]}  Ra5 {[%clk 0:00:14]} 28. Rc2 {[%clk 0:00:20]}  Qa1+ {[%clk 0:00:11]} 29. Qg1 {[%clk 0:00:17]}  Qxe5 {[%clk 0:00:09]} 30. Rc8+ {[%clk 0:00:17]}  Kh7 {[%clk 0:00:10]} 31. Qb1+ {[%clk 0:00:18]}  g6 {[%clk 0:00:10]} 32. Rc2 {[%clk 0:00:15]}  Qf5 {[%clk 0:00:10]} 33. Qb2 {[%clk 0:00:14]}  Rb5 {[%clk 0:00:10]} 34. Qc1 {[%clk 0:00:12]}  Qe5 {[%clk 0:00:08]} 35. Rf2 {[%clk 0:00:10]}  Qc5 {[%clk 0:00:08]} 36. Rxf7+ {[%clk 0:00:10]}  Kg8 {[%clk 0:00:08]} 37. Qf1 {[%clk 0:00:10]}  Rb8 {[%clk 0:00:05]} 38. Rf6 {[%clk 0:00:09]}  Qc2 {[%clk 0:00:03]} 39. Rf2 {[%clk 0:00:08]}  Rb1 {[%clk 0:00:02]} 40. Rxc2 {[%clk 0:00:06]}  Rxf1+ {[%clk 0:00:03]} 41. Kh2 {[%clk 0:00:07]}  Ra1 {[%clk 0:00:03]} 42. Rc8+ {[%clk 0:00:08]}  Kg7 {[%clk 0:00:04]} 43. Rc7+ {[%clk 0:00:08]}  Kf6 {[%clk 0:00:04]} 44. Rc2 {[%clk 0:00:09]}  h5 {[%clk 0:00:05]} 45. Kg3 {[%clk 0:00:09]}  Kg5 {[%clk 0:00:06]} 46. h4+ {[%clk 0:00:08]}  Kh6 {[%clk 0:00:05]} 47. Kf3 {[%clk 0:00:09]}  e5 {[%clk 0:00:05]} 48. Ke4 {[%clk 0:00:09]}  Re1+ {[%clk 0:00:04]} 49. Kd5 {[%clk 0:00:09]}  e4 {[%clk 0:00:04]} 50. a4 {[%clk 0:00:09]}  e3 {[%clk 0:00:05]} 51. Ra2 {[%clk 0:00:09]}  e2 {[%clk 0:00:05]} 52. Ke4 {[%clk 0:00:09]}  Rh1 {[%clk 0:00:01]} 53. Rxe2 {[%clk 0:00:09]}  Rxh4+ {[%clk 0:00:01]} 54. Kf3 {[%clk 0:00:10]}  Rxa4 {[%clk 0:00:02]} 55. g3 {[%clk 0:00:10]}  Ra5 {[%clk 0:00:03]} 56. Re8 {[%clk 0:00:10]}  Rf5+ {[%clk 0:00:03]} 57. Kg2 {[%clk 0:00:11]}  Kg5 {[%clk 0:00:04]} 58. Ra8 {[%clk 0:00:11]}  Rf6 {[%clk 0:00:04]} 59. Ra5+ {[%clk 0:00:11]}  Rf5 {[%clk 0:00:05]} 60. Ra4 {[%clk 0:00:12]}  Rf6 {[%clk 0:00:05]} 61. Ra5+ {[%clk 0:00:12]}  Rf5 {[%clk 0:00:06]} 62. Ra4 {[%clk 0:00:13]}  Rf6 {[%clk 0:00:07]} 63. Kh3 {[%clk 0:00:12]}  Rf5 {[%clk 0:00:07]} 64. Ra8 {[%clk 0:00:12]}  Rf6 {[%clk 0:00:08]} 65. Ra1 {[%clk 0:00:12]}  Rf5 {[%clk 0:00:08]} 66. Re1 {[%clk 0:00:12]}  Rf6 {[%clk 0:00:09]} 67. Re4 {[%clk 0:00:12]}  Rf5 {[%clk 0:00:09]} 68. Rd4 {[%clk 0:00:13]}  Rf6 {[%clk 0:00:10]} 69. Rd5+ {[%clk 0:00:13]}  Rf5 {[%clk 0:00:10]} 70. Rd8 {[%clk 0:00:14]}  Rf6 {[%clk 0:00:11]} 71. Rd5+ {[%clk 0:00:14]}  Rf5 {[%clk 0:00:11]} 72. Rd4 {[%clk 0:00:15]}  Rf6 {[%clk 0:00:12]} 73. Kg2 {[%clk 0:00:15]}  Rf5 {[%clk 0:00:12]} 74. Rc4 {[%clk 0:00:15]}  Rf6 {[%clk 0:00:13]} 75. Rd4 {[%clk 0:00:16]}  Rf5 {[%clk 0:00:13]} 76. Rc4 {[%clk 0:00:16]}  Rf6 {[%clk 0:00:14]} 77. Rd4 {[%clk 0:00:17]} 1/2-1/2


[Site "https://www.chess.com"]

[Event "Titled Tuesday Blitz August 15 Early 2023"]
[White "Pax-Pramana"]
[Black "slimshady"]
[WhiteElo "2565"]
[BlackElo "2297"]
[Result "1-0"]
[Round "6"]
[TimeControl "180+1"]
[Date "2023.08.15"]
[WhiteClock "0:00:48"]
[BlackClock "0:01:18"]
[Board "93"]

1. e4 {[%clk 0:03:00]}  c5 {[%clk 0:02:58]} 2. Ne2 {[%clk 0:03:00]}  d6 {[%clk 0:02:58]} 3. g3 {[%clk 0:03:00]}  Nf6 {[%clk 0:02:57]} 4. Bg2 {[%clk 0:03:01]}  g6 {[%clk 0:02:57]} 5. O-O {[%clk 0:03:01]}  Bg7 {[%clk 0:02:57]} 6. c3 {[%clk 0:03:02]}  O-O {[%clk 0:02:57]} 7. d4 {[%clk 0:03:03]}  cxd4 {[%clk 0:02:56]} 8. cxd4 {[%clk 0:03:04]}  Nc6 {[%clk 0:02:56]} 9. Nbc3 {[%clk 0:03:01]}  Bd7 {[%clk 0:02:51]} 10. h3 {[%clk 0:02:56]}  Rc8 {[%clk 0:02:50]} 11. Be3 {[%clk 0:02:55]}  a6 {[%clk 0:02:49]} 12. a4 {[%clk 0:02:44]}  Nb4 {[%clk 0:02:43]} 13. a5 {[%clk 0:02:39]}  e5 {[%clk 0:02:26]} 14. d5 {[%clk 0:02:39]}  Bb5 {[%clk 0:02:04]} 15. Nxb5 {[%clk 0:02:30]}  axb5 {[%clk 0:02:05]} 16. Nc3 {[%clk 0:02:26]}  Qd7 {[%clk 0:02:04]} 17. Qb3 {[%clk 0:02:19]}  Rc4 {[%clk 0:02:00]} 18. Rfc1 {[%clk 0:02:13]}  Rfc8 {[%clk 0:01:59]} 19. Bf1 {[%clk 0:02:14]}  Nh5 {[%clk 0:01:53]} 20. Bxc4 {[%clk 0:02:09]}  Rxc4 {[%clk 0:01:54]} 21. Kh2 {[%clk 0:02:02]}  f5 {[%clk 0:01:51]} 22. Ne2 {[%clk 0:01:33]}  f4 {[%clk 0:01:48]} 23. Rxc4 {[%clk 0:01:23]}  bxc4 {[%clk 0:01:46]} 24. Qxb4 {[%clk 0:01:21]}  fxe3 {[%clk 0:01:46]} 25. fxe3 {[%clk 0:01:11]}  Qf7 {[%clk 0:01:44]} 26. Kg2 {[%clk 0:01:10]}  Bh6 {[%clk 0:01:42]} 27. Rf1 {[%clk 0:01:08]}  Qe7 {[%clk 0:01:38]} 28. Rf3 {[%clk 0:01:02]}  Qc7 {[%clk 0:01:27]} 29. g4 {[%clk 0:00:52]}  Ng7 {[%clk 0:01:26]} 30. Nc3 {[%clk 0:00:50]}  Bg5 {[%clk 0:01:24]} 31. Nb5 {[%clk 0:00:48]}  Qc8 {[%clk 0:01:18]} 1-0


[Site "https://www.chess.com"]

[Event "Titled Tuesday Blitz August 15 Early 2023"]
[White "EvgenyBurmakin"]
[Black "Starozhilov, Leonid"]
[BlackFideId "14106752"]
[WhiteElo "2272"]
[BlackElo "2697"]
[Result "1-0"]
[Round "6"]
[TimeControl "180+1"]
[Date "2023.08.15"]
[WhiteClock "0:00:17"]
[BlackClock "0:00:02"]
[Board "95"]

1. e4 {[%clk 0:03:00]}  g6 {[%clk 0:02:59]} 2. d4 {[%clk 0:03:00]}  Bg7 {[%clk 0:02:59]} 3. Nc3 {[%clk 0:03:00]}  d6 {[%clk 0:03:00]} 4. Be3 {[%clk 0:02:59]}  a6 {[%clk 0:03:00]} 5. h4 {[%clk 0:02:55]}  h5 {[%clk 0:03:00]} 6. f3 {[%clk 0:02:55]}  b5 {[%clk 0:02:58]} 7. a3 {[%clk 0:02:55]}  Nd7 {[%clk 0:02:58]} 8. Qd2 {[%clk 0:02:55]}  c5 {[%clk 0:02:54]} 9. dxc5 {[%clk 0:02:43]}  Nxc5 {[%clk 0:02:53]} 10. Bxc5 {[%clk 0:02:40]}  dxc5 {[%clk 0:02:52]} 11. Qxd8+ {[%clk 0:02:41]}  Kxd8 {[%clk 0:02:52]} 12. O-O-O+ {[%clk 0:02:41]}  Kc7 {[%clk 0:02:40]} 13. Nd5+ {[%clk 0:02:41]}  Kc6 {[%clk 0:02:29]} 14. a4 {[%clk 0:02:39]}  bxa4 {[%clk 0:02:08]} 15. Bc4 {[%clk 0:02:32]}  e6 {[%clk 0:02:01]} 16. Nc3 {[%clk 0:02:28]}  a3 {[%clk 0:02:00]} 17. Na4 {[%clk 0:02:28]}  axb2+ {[%clk 0:01:51]} 18. Nxb2 {[%clk 0:02:29]}  Rb8 {[%clk 0:01:51]} 19. Nd3 {[%clk 0:02:26]}  Ne7 {[%clk 0:01:38]} 20. Ne2 {[%clk 0:02:25]}  Rd8 {[%clk 0:01:33]} 21. Ne5+ {[%clk 0:02:13]}  Kc7 {[%clk 0:01:16]} 22. Rxd8 {[%clk 0:02:10]}  Kxd8 {[%clk 0:01:17]} 23. Nxf7+ {[%clk 0:02:07]}  Ke8 {[%clk 0:01:17]} 24. Nd6+ {[%clk 0:02:04]}  Kd7 {[%clk 0:01:16]} 25. Nxc8 {[%clk 0:02:05]}  Kxc8 {[%clk 0:01:08]} 26. Bxe6+ {[%clk 0:02:04]}  Kc7 {[%clk 0:01:05]} 27. Kd2 {[%clk 0:01:54]}  Nc6 {[%clk 0:01:04]} 28. Rd1 {[%clk 0:01:48]}  Nd4 {[%clk 0:01:02]} 29. Nxd4 {[%clk 0:01:44]}  Bxd4 {[%clk 0:00:56]} 30. Kd3 {[%clk 0:01:39]}  Rb2 {[%clk 0:00:51]} 31. c3 {[%clk 0:01:39]}  Be5 {[%clk 0:00:47]} 32. Rd2 {[%clk 0:01:40]}  Rxd2+ {[%clk 0:00:29]} 33. Kxd2 {[%clk 0:01:40]}  Bg3 {[%clk 0:00:28]} 34. Bf7 {[%clk 0:01:39]}  Bxh4 {[%clk 0:00:28]} 35. Bxg6 {[%clk 0:01:37]}  Bg5+ {[%clk 0:00:29]} 36. Kd3 {[%clk 0:01:37]}  h4 {[%clk 0:00:29]} 37. Kc4 {[%clk 0:01:36]}  Kd6 {[%clk 0:00:29]} 38. Be8 {[%clk 0:01:31]}  Bf4 {[%clk 0:00:25]} 39. Bh5 {[%clk 0:01:29]}  Be5 {[%clk 0:00:24]} 40. Bg4 {[%clk 0:01:29]}  Bf4 {[%clk 0:00:23]} 41. Bc8 {[%clk 0:01:26]}  Be5 {[%clk 0:00:23]} 42. Bxa6 {[%clk 0:01:25]}  Bf4 {[%clk 0:00:22]} 43. Bc8 {[%clk 0:01:25]}  Be3 {[%clk 0:00:21]} 44. Kd3 {[%clk 0:01:24]}  Bf4 {[%clk 0:00:21]} 45. Kc4 {[%clk 0:01:23]}  Be3 {[%clk 0:00:20]} 46. Bh3 {[%clk 0:01:22]}  Ke5 {[%clk 0:00:20]} 47. Kb5 {[%clk 0:01:21]}  Bd2 {[%clk 0:00:20]} 48. c4 {[%clk 0:01:19]}  Be3 {[%clk 0:00:20]} 49. Kc6 {[%clk 0:01:20]}  Bd4 {[%clk 0:00:15]} 50. Kd7 {[%clk 0:01:18]}  Be3 {[%clk 0:00:15]} 51. Ke7 {[%clk 0:01:17]}  Bg5+ {[%clk 0:00:14]} 52. Kf7 {[%clk 0:01:17]}  Bf4 {[%clk 0:00:13]} 53. Kg6 {[%clk 0:01:17]}  Kd4 {[%clk 0:00:10]} 54. Be6 {[%clk 0:01:15]}  Ke5 {[%clk 0:00:10]} 55. Bd5 {[%clk 0:01:12]}  Be3 {[%clk 0:00:07]} 56. Kh5 {[%clk 0:01:12]}  Bf2 {[%clk 0:00:07]} 57. Kg4 {[%clk 0:01:12]}  Bg3 {[%clk 0:00:05]} 58. Bb7 {[%clk 0:01:11]}  Kd4 {[%clk 0:00:03]} 59. Bd5 {[%clk 0:00:49]}  Ke5 {[%clk 0:00:03]} 60. f4+ {[%clk 0:00:36]}  Bxf4 {[%clk 0:00:03]} 61. Kxh4 {[%clk 0:00:36]}  Kf6 {[%clk 0:00:03]} 62. Kh5 {[%clk 0:00:33]}  Be5 {[%clk 0:00:03]} 63. g4 {[%clk 0:00:33]}  Bf4 {[%clk 0:00:03]} 64. Bc6 {[%clk 0:00:30]}  Be3 {[%clk 0:00:02]} 65. g5+ {[%clk 0:00:21]}  Ke5 {[%clk 0:00:02]} 66. g6 {[%clk 0:00:20]}  Kf6 {[%clk 0:00:02]} 67. Bd5 {[%clk 0:00:18]}  Bd4 {[%clk 0:00:02]} 68. Bf7 {[%clk 0:00:18]}  Kg7 {[%clk 0:00:03]} 69. Kg5 {[%clk 0:00:18]}  Kf8 {[%clk 0:00:03]} 70. Kf5 {[%clk 0:00:18]}  Ke7 {[%clk 0:00:03]} 71. e5 {[%clk 0:00:19]}  Bc3 {[%clk 0:00:03]} 72. Ke4 {[%clk 0:00:17]}  Kf8 {[%clk 0:00:04]} 73. Kd5 {[%clk 0:00:18]}  Bd4 {[%clk 0:00:04]} 74. Kd6 {[%clk 0:00:17]}  Kg7 {[%clk 0:00:04]} 75. e6 {[%clk 0:00:17]}  Kf8 {[%clk 0:00:02]} 76. e7+ {[%clk 0:00:17]} 1-0


[Site "https://www.chess.com"]

[Event "Titled Tuesday Blitz August 15 Early 2023"]
[White "Belov, Alexei"]
[Black "Liu, Casper"]
[WhiteFideId "4128206"]
[BlackFideId "1454153"]
[WhiteElo "2608"]
[BlackElo "2464"]
[Result "1-0"]
[Round "6"]
[TimeControl "180+1"]
[Date "2023.08.15"]
[WhiteClock "0:00:53"]
[BlackClock "0:01:44"]
[Board "99"]

1. e4 {[%clk 0:03:00]}  c5 {[%clk 0:02:58]} 2. Nf3 {[%clk 0:03:00]}  d6 {[%clk 0:02:58]} 3. d4 {[%clk 0:03:01]}  cxd4 {[%clk 0:02:59]} 4. Nxd4 {[%clk 0:03:01]}  Nf6 {[%clk 0:03:00]} 5. Nc3 {[%clk 0:03:01]}  Nc6 {[%clk 0:03:00]} 6. Be2 {[%clk 0:03:01]}  e5 {[%clk 0:03:00]} 7. Nb3 {[%clk 0:03:02]}  Be6 {[%clk 0:03:01]} 8. O-O {[%clk 0:03:01]}  Be7 {[%clk 0:03:01]} 9. f4 {[%clk 0:03:02]}  exf4 {[%clk 0:02:58]} 10. Bxf4 {[%clk 0:03:02]}  d5 {[%clk 0:02:58]} 11. e5 {[%clk 0:02:56]}  Nd7 {[%clk 0:02:55]} 12. Nxd5 {[%clk 0:02:50]}  Ndxe5 {[%clk 0:02:55]} 13. Nxe7 {[%clk 0:02:47]}  Qxe7 {[%clk 0:02:56]} 14. Qe1 {[%clk 0:02:32]}  O-O {[%clk 0:02:51]} 15. Qg3 {[%clk 0:02:31]}  Bc4 {[%clk 0:02:36]} 16. Rae1 {[%clk 0:02:07]}  Bxb3 {[%clk 0:02:28]} 17. axb3 {[%clk 0:01:58]}  Rad8 {[%clk 0:02:08]} 18. c3 {[%clk 0:01:56]}  Ng6 {[%clk 0:02:04]} 19. Bg5 {[%clk 0:01:43]}  Qc5+ {[%clk 0:02:03]} 20. Kh1 {[%clk 0:01:43]}  Rd5 {[%clk 0:02:01]} 21. Be3 {[%clk 0:01:38]}  Qd6 {[%clk 0:02:00]} 22. Qxd6 {[%clk 0:01:36]}  Rxd6 {[%clk 0:02:00]} 23. Bc5 {[%clk 0:01:36]}  Rfd8 {[%clk 0:01:59]} 24. Bxd6 {[%clk 0:01:36]}  Rxd6 {[%clk 0:02:00]} 25. Rd1 {[%clk 0:01:29]}  Re6 {[%clk 0:01:58]} 26. Bc4 {[%clk 0:01:27]}  Re7 {[%clk 0:01:58]} 27. Rfe1 {[%clk 0:01:26]}  Nge5 {[%clk 0:01:58]} 28. Bd5 {[%clk 0:01:23]}  g6 {[%clk 0:01:53]} 29. b4 {[%clk 0:01:21]}  Rd7 {[%clk 0:01:46]} 30. b5 {[%clk 0:01:12]}  Ng4 {[%clk 0:01:46]} 31. bxc6 {[%clk 0:01:05]}  bxc6 {[%clk 0:01:47]} 32. Bf3 {[%clk 0:00:54]}  Nf2+ {[%clk 0:01:47]} 33. Kg1 {[%clk 0:00:55]}  Nxd1 {[%clk 0:01:48]} 34. Rxd1 {[%clk 0:00:55]}  Rb7 {[%clk 0:01:48]} 35. Rd2 {[%clk 0:00:54]}  Rb6 {[%clk 0:01:48]} 36. b4 {[%clk 0:00:54]}  Kg7 {[%clk 0:01:47]} 37. Rd6 {[%clk 0:00:54]}  a5 {[%clk 0:01:44]} 38. Rxc6 {[%clk 0:00:53]} 1-0


[Site "https://www.chess.com"]

[Event "Titled Tuesday Blitz August 15 Early 2023"]
[White "Aggelis, Nikolaos"]
[Black "Nathan, Nitish"]
[WhiteFideId "4213220"]
[BlackFideId "30927870"]
[WhiteElo "2571"]
[BlackElo "2441"]
[Result "1/2-1/2"]
[Round "6"]
[TimeControl "180+1"]
[Date "2023.08.15"]
[WhiteClock "0:00:20"]
[BlackClock "0:01:25"]
[Board "102"]

1. c4 {[%clk 0:02:45]}  c6 {[%clk 0:02:59]} 2. Nf3 {[%clk 0:02:41]}  d5 {[%clk 0:02:59]} 3. cxd5 {[%clk 0:02:40]}  cxd5 {[%clk 0:02:59]} 4. d4 {[%clk 0:02:41]}  Nc6 {[%clk 0:02:58]} 5. Nc3 {[%clk 0:02:39]}  Nf6 {[%clk 0:02:57]} 6. Bf4 {[%clk 0:02:37]}  a6 {[%clk 0:02:57]} 7. h3 {[%clk 0:02:31]}  Bf5 {[%clk 0:02:57]} 8. Nh4 {[%clk 0:02:29]}  Bd7 {[%clk 0:02:54]} 9. e3 {[%clk 0:02:28]}  e6 {[%clk 0:02:53]} 10. Nf3 {[%clk 0:02:25]}  Bb4 {[%clk 0:02:52]} 11. Bd3 {[%clk 0:02:25]}  O-O {[%clk 0:02:50]} 12. O-O {[%clk 0:02:25]}  Rc8 {[%clk 0:02:44]} 13. Rc1 {[%clk 0:02:21]}  Na5 {[%clk 0:02:42]} 14. Ne5 {[%clk 0:02:19]}  Be7 {[%clk 0:02:40]} 15. Qe2 {[%clk 0:02:04]}  b5 {[%clk 0:02:37]} 16. b3 {[%clk 0:02:00]}  Nc6 {[%clk 0:02:36]} 17. Nxc6 {[%clk 0:01:45]}  Bxc6 {[%clk 0:02:37]} 18. Rc2 {[%clk 0:01:40]}  Bb7 {[%clk 0:02:35]} 19. Nb1 {[%clk 0:01:38]}  Qd7 {[%clk 0:02:35]} 20. Rfc1 {[%clk 0:01:30]}  Rxc2 {[%clk 0:02:34]} 21. Rxc2 {[%clk 0:01:30]}  Rc8 {[%clk 0:02:33]} 22. Rxc8+ {[%clk 0:01:26]}  Qxc8 {[%clk 0:02:34]} 23. Qc2 {[%clk 0:01:25]}  Qxc2 {[%clk 0:02:33]} 24. Bxc2 {[%clk 0:01:26]}  Kf8 {[%clk 0:02:34]} 25. g4 {[%clk 0:01:24]}  h6 {[%clk 0:02:32]} 26. Bc7 {[%clk 0:01:22]}  Ke8 {[%clk 0:02:32]} 27. f4 {[%clk 0:01:22]}  Kd7 {[%clk 0:02:32]} 28. Ba5 {[%clk 0:01:21]}  Ne8 {[%clk 0:02:22]} 29. Kf2 {[%clk 0:01:19]}  Nd6 {[%clk 0:02:22]} 30. Nd2 {[%clk 0:01:19]}  Bh4+ {[%clk 0:02:22]} 31. Ke2 {[%clk 0:01:17]}  f5 {[%clk 0:02:18]} 32. Nf3 {[%clk 0:01:17]}  Bf6 {[%clk 0:02:16]} 33. g5 {[%clk 0:01:16]}  hxg5 {[%clk 0:02:14]} 34. fxg5 {[%clk 0:01:17]}  Be7 {[%clk 0:02:14]} 35. Ne5+ {[%clk 0:01:17]}  Ke8 {[%clk 0:02:14]} 36. h4 {[%clk 0:01:17]}  Nf7 {[%clk 0:02:14]} 37. Ng6 {[%clk 0:01:15]}  Bd6 {[%clk 0:02:13]} 38. a4 {[%clk 0:01:08]}  Bc6 {[%clk 0:02:11]} 39. Bd3 {[%clk 0:01:06]}  bxa4 {[%clk 0:02:09]} 40. bxa4 {[%clk 0:01:07]}  Bxa4 {[%clk 0:02:09]} 41. Bxa6 {[%clk 0:01:07]}  e5 {[%clk 0:02:06]} 42. Bc8 {[%clk 0:01:03]}  Bd7 {[%clk 0:02:01]} 43. Bb7 {[%clk 0:01:02]}  Be6 {[%clk 0:01:59]} 44. dxe5 {[%clk 0:00:57]}  Nxe5 {[%clk 0:01:59]} 45. Nf4 {[%clk 0:00:57]}  Kf7 {[%clk 0:01:53]} 46. Bxd5 {[%clk 0:00:53]}  Bxd5 {[%clk 0:01:52]} 47. Nxd5 {[%clk 0:00:54]}  g6 {[%clk 0:01:50]} 48. Bc3 {[%clk 0:00:51]}  Ng4 {[%clk 0:01:48]} 49. Nf4 {[%clk 0:00:50]}  Bxf4 {[%clk 0:01:44]} 50. exf4 {[%clk 0:00:51]}  Kg8 {[%clk 0:01:43]} 51. Kd3 {[%clk 0:00:50]}  Kh7 {[%clk 0:01:43]} 52. Bd4 {[%clk 0:00:50]}  Nh2 {[%clk 0:01:43]} 53. Ke2 {[%clk 0:00:47]}  Ng4 {[%clk 0:01:42]} 54. Bg1 {[%clk 0:00:45]}  Kg8 {[%clk 0:01:41]} 55. Kd3 {[%clk 0:00:45]}  Kf7 {[%clk 0:01:39]} 56. Kd4 {[%clk 0:00:46]}  Ke6 {[%clk 0:01:37]} 57. Kc5 {[%clk 0:00:46]}  Ke7 {[%clk 0:01:37]} 58. Kd5 {[%clk 0:00:46]}  Kd7 {[%clk 0:01:37]} 59. Bc5 {[%clk 0:00:39]}  Nh2 {[%clk 0:01:28]} 60. Ke5 {[%clk 0:00:28]}  Ng4+ {[%clk 0:01:27]} 61. Kd5 {[%clk 0:00:26]}  Nh2 {[%clk 0:01:27]} 62. Bf2 {[%clk 0:00:22]}  Ng4 {[%clk 0:01:26]} 63. Bg1 {[%clk 0:00:21]}  Ke7 {[%clk 0:01:25]} 64. Kc6 {[%clk 0:00:20]}  Ke6 {[%clk 0:01:25]} 65. Kc5 {[%clk 0:00:20]}  Ke7 {[%clk 0:01:25]} 66. Kd5 {[%clk 0:00:20]}  Kd7 {[%clk 0:01:25]} 67. Kc5 {[%clk 0:00:20]}  Ke7 {[%clk 0:01:25]} 1/2-1/2


[Site "https://www.chess.com"]

[Event "Titled Tuesday Blitz August 15 Early 2023"]
[White "Toktomushev, Teimur"]
[Black "Yelisieiev, Yevhenii"]
[WhiteFideId "14176726"]
[BlackFideId "14139642"]
[WhiteElo "2435"]
[BlackElo "2556"]
[Result "1/2-1/2"]
[Round "6"]
[TimeControl "180+1"]
[Date "2023.08.15"]
[WhiteClock "0:00:03"]
[BlackClock "0:00:11"]
[Board "104"]

1. d4 {[%clk 0:03:00]}  d6 {[%clk 0:03:00]} 2. c4 {[%clk 0:02:59]}  e5 {[%clk 0:03:00]} 3. Nf3 {[%clk 0:02:58]}  Nd7 {[%clk 0:02:57]} 4. Nc3 {[%clk 0:02:58]}  Ngf6 {[%clk 0:02:58]} 5. g3 {[%clk 0:02:54]}  Be7 {[%clk 0:02:57]} 6. Bg2 {[%clk 0:02:54]}  O-O {[%clk 0:02:58]} 7. O-O {[%clk 0:02:55]}  c6 {[%clk 0:02:58]} 8. Qc2 {[%clk 0:02:34]}  Re8 {[%clk 0:02:54]} 9. Rd1 {[%clk 0:02:33]}  Qc7 {[%clk 0:02:55]} 10. b3 {[%clk 0:02:23]}  Bf8 {[%clk 0:02:54]} 11. Ba3 {[%clk 0:02:10]}  e4 {[%clk 0:02:50]} 12. Nd2 {[%clk 0:02:09]}  d5 {[%clk 0:02:50]} 13. Bxf8 {[%clk 0:02:09]}  Nxf8 {[%clk 0:02:49]} 14. Rdc1 {[%clk 0:01:38]}  Qe7 {[%clk 0:02:39]} 15. Nf1 {[%clk 0:01:10]}  Be6 {[%clk 0:02:25]} 16. Ne3 {[%clk 0:01:01]}  Red8 {[%clk 0:02:21]} 17. Rab1 {[%clk 0:00:49]}  dxc4 {[%clk 0:02:04]} 18. bxc4 {[%clk 0:00:31]}  Rxd4 {[%clk 0:02:03]} 19. Nxe4 {[%clk 0:00:29]}  Nxe4 {[%clk 0:01:55]} 20. Bxe4 {[%clk 0:00:30]}  Rad8 {[%clk 0:01:55]} 21. Rd1 {[%clk 0:00:16]}  Bc8 {[%clk 0:01:43]} 22. Bf3 {[%clk 0:00:14]}  Qc5 {[%clk 0:01:31]} 23. Rxd4 {[%clk 0:00:09]}  Rxd4 {[%clk 0:01:29]} 24. Rd1 {[%clk 0:00:09]}  Ne6 {[%clk 0:01:28]} 25. h4 {[%clk 0:00:05]}  Rxd1+ {[%clk 0:01:23]} 26. Qxd1 {[%clk 0:00:06]}  Nd4 {[%clk 0:01:24]} 27. Bg2 {[%clk 0:00:03]}  g6 {[%clk 0:01:22]} 28. Qd3 {[%clk 0:00:03]}  Be6 {[%clk 0:01:20]} 29. Qe4 {[%clk 0:00:03]}  Nxe2+ {[%clk 0:00:58]} 30. Kh2 {[%clk 0:00:04]}  Nd4 {[%clk 0:00:53]} 31. Qf4 {[%clk 0:00:04]}  Kg7 {[%clk 0:00:46]} 32. Qc7 {[%clk 0:00:04]}  Nf5 {[%clk 0:00:37]} 33. Nxf5+ {[%clk 0:00:03]}  Qxf5 {[%clk 0:00:37]} 34. Qxb7 {[%clk 0:00:03]}  Bxc4 {[%clk 0:00:34]} 35. Qxc6 {[%clk 0:00:02]}  Bxa2 {[%clk 0:00:34]} 36. Qc3+ {[%clk 0:00:03]}  Qf6 {[%clk 0:00:33]} 37. Qd2 {[%clk 0:00:02]}  Be6 {[%clk 0:00:30]} 38. Kg1 {[%clk 0:00:02]}  Qa1+ {[%clk 0:00:30]} 39. Kh2 {[%clk 0:00:03]}  a5 {[%clk 0:00:30]} 40. h5 {[%clk 0:00:02]}  gxh5 {[%clk 0:00:14]} 41. Qg5+ {[%clk 0:00:01]}  Kf8 {[%clk 0:00:13]} 42. Qd8+ {[%clk 0:00:02]}  Kg7 {[%clk 0:00:13]} 43. Qg5+ {[%clk 0:00:02]}  Kf8 {[%clk 0:00:11]} 44. Qd8+ {[%clk 0:00:03]}  Kg7 {[%clk 0:00:11]} 45. Qg5+ {[%clk 0:00:03]} 1/2-1/2


[Site "https://www.chess.com"]

[Event "Titled Tuesday Blitz August 15 Early 2023"]
[White "Shohat, Yotam"]
[Black "Shapiro, Viktor"]
[WhiteFideId "2813955"]
[BlackFideId "4175700"]
[WhiteElo "2433"]
[BlackElo "2550"]
[Result "0-1"]
[Round "6"]
[TimeControl "180+1"]
[Date "2023.08.15"]
[WhiteClock "0:00:03"]
[BlackClock "0:01:54"]
[Board "105"]

1. e4 {[%clk 0:02:58]}  Nf6 {[%clk 0:02:59]} 2. e5 {[%clk 0:02:58]}  Nd5 {[%clk 0:02:59]} 3. d4 {[%clk 0:02:57]}  d6 {[%clk 0:03:00]} 4. Nf3 {[%clk 0:02:58]}  Bg4 {[%clk 0:02:59]} 5. Be2 {[%clk 0:02:58]}  e6 {[%clk 0:02:59]} 6. O-O {[%clk 0:02:56]}  Be7 {[%clk 0:02:59]} 7. c4 {[%clk 0:02:55]}  Nb6 {[%clk 0:02:59]} 8. Nc3 {[%clk 0:02:48]}  O-O {[%clk 0:02:58]} 9. h3 {[%clk 0:02:43]}  Bh5 {[%clk 0:02:56]} 10. exd6 {[%clk 0:02:40]}  cxd6 {[%clk 0:02:56]} 11. Be3 {[%clk 0:02:38]}  d5 {[%clk 0:02:55]} 12. c5 {[%clk 0:02:35]}  Bxf3 {[%clk 0:02:55]} 13. Bxf3 {[%clk 0:02:34]}  Nc8 {[%clk 0:02:56]} 14. b4 {[%clk 0:02:32]}  Nc6 {[%clk 0:02:57]} 15. a3 {[%clk 0:02:20]}  Bf6 {[%clk 0:02:56]} 16. Qd2 {[%clk 0:02:12]}  N8e7 {[%clk 0:02:57]} 17. Bg4 {[%clk 0:02:06]}  g6 {[%clk 0:02:56]} 18. Nb5 {[%clk 0:01:57]}  h5 {[%clk 0:02:54]} 19. Be2 {[%clk 0:01:52]}  Nf5 {[%clk 0:02:53]} 20. Bd3 {[%clk 0:01:37]}  Nfxd4 {[%clk 0:02:30]} 21. Nxd4 {[%clk 0:01:36]}  Nxd4 {[%clk 0:02:25]} 22. Bxg6 {[%clk 0:01:24]}  Nb3 {[%clk 0:02:22]} 23. Qd3 {[%clk 0:01:08]}  fxg6 {[%clk 0:02:20]} 24. Qxg6+ {[%clk 0:00:58]}  Bg7 {[%clk 0:02:20]} 25. Rab1 {[%clk 0:00:57]}  Rf6 {[%clk 0:02:04]} 26. Qxh5 {[%clk 0:00:51]}  d4 {[%clk 0:02:04]} 27. Bg5 {[%clk 0:00:28]}  Qd5 {[%clk 0:02:04]} 28. Rxb3 {[%clk 0:00:15]}  Qxb3 {[%clk 0:02:04]} 29. Bxf6 {[%clk 0:00:14]}  Bxf6 {[%clk 0:02:04]} 30. Qg6+ {[%clk 0:00:10]}  Bg7 {[%clk 0:02:04]} 31. Qe4 {[%clk 0:00:10]}  Qd5 {[%clk 0:02:03]} 32. Qd3 {[%clk 0:00:08]}  e5 {[%clk 0:02:02]} 33. f3 {[%clk 0:00:08]}  Bh6 {[%clk 0:02:01]} 34. Qg6+ {[%clk 0:00:07]}  Bg7 {[%clk 0:02:01]} 35. Re1 {[%clk 0:00:07]}  Rd8 {[%clk 0:02:00]} 36. Re4 {[%clk 0:00:07]}  d3 {[%clk 0:01:59]} 37. Rg4 {[%clk 0:00:07]}  Qd7 {[%clk 0:01:57]} 38. Rh4 {[%clk 0:00:05]}  d2 {[%clk 0:01:54]} 39. Qh7+ {[%clk 0:00:03]}  Kf8 {[%clk 0:01:54]} 0-1


[Site "https://www.chess.com"]